Cogmind - Beta 14 @@@ ROGUE MODE // 2024.10.10 @ 00:44:10 Player: Kate+Gabe4evr Result: Destroyed by H-66 Slayer with Gauss Rifle Performance ------------- Evolutions (4) 2000 Regions Visited (7) 1400 Robots Destroyed (59) 295 Value Destroyed (2026) 2026 Prototype IDs (1) 20 Alien Tech Used (0) 0 Bonus (50) 50 TOTAL SCORE: 5791 Bonus ------- High Alert Combat Kills 50 Cogmind --------- Core Integrity 0/850 Matter 210/300 Energy 28/100 System Corruption 26% Temperature Cool (39) Movement Core (100) Ox1 Location -6/Factory Parts ------- > --- POWER (1) -------- (None) > --- PROPULSION (4) --- (None) > --- UTILITY (6) ------ (None) > --- WEAPON (4) ------- Gatling Laser > --- INVENTORY (5) ---- Hybrid Deuterium Engine Improved Cryofiber Web Advanced Heat Sink Peak State ------------ > --- POWER ------------ Hybrid Deuterium Engine > --- PROPULSION ------- Light Treads Advanced Treads Medium Treads Improved Medium Treads > --- UTILITY ---------- Medium Storage Unit Compact Matter Pod Advanced Sensor Array Core Analyzer Hardened Heavy Armor Plating > --- WEAPON ----------- Heavy Machine Gun Improved Heavy Machine Gun Improved Heavy Machine Gun Improved Heavy Machine Gun > --- INVENTORY -------- Hybrid Deuterium Engine Hybrid Deuterium Engine Light Treads Light Treads Flak Gun Flak Gun Coil Gun Coil Gun Power Maul [Rating: 64] Favorites ----------- Power Hybrid Deuterium Engine Engine Hybrid Deuterium Engine Propulsion Light Treads Treads Light Treads Utility Small Storage Unit Device Advanced Sensor Array Storage Small Storage Unit Processor Core Analyzer Protection Core Shielding Weapon Improved Heavy Machine Gun Energy Gun Small Laser Ballistic Gun Improved Heavy Machine Gun Impact Weapon Power Maul Build | -11 -10 -9 -8 -7 -6 -6 -6 ------- Run | Yrd Mat Mat Mat Fac Fac Was Fac Slots Evolved 8 | . . 2 2 2 2 . . Power . | . . . . . . . . Propulsion 2 | . . 1 . . 1 . . Utility 4 | . . 1 1 1 1 . . Weapon 2 | . . . 1 1 . . . Parts Attached 65 | 7 5 10 7 3 21 5 7 Power 7 | 2 . 2 1 . 1 . 1 Engine 7 | 2 . 2 1 . 1 . 1 Core . | . . . . . . . . Reactor . | . . . . . . . . Propulsion 19 | 2 2 6 . 2 6 . 1 Treads 19 | 2 2 6 . 2 6 . 1 Leg . | . . . . . . . . Wheel . | . . . . . . . . Hover . | . . . . . . . . Flight . | . . . . . . . . Utility 14 | 1 1 1 2 . 5 1 3 Device 4 | . . . . . 1 1 2 Storage 3 | 1 . . . . 2 . . Processor 3 | . 1 . 1 . 1 . . Hackware . | . . . . . . . . Protection 4 | . . 1 1 . 1 . 1 Artifact . | . . . . . . . . Weapon 25 | 2 2 1 4 1 9 4 2 Energy Gun 2 | 1 . . . . . . 1 Energy Cannon . | . . . . . . . . Ballistic Gun 21 | 1 2 1 4 1 8 3 1 Ballistic Cannon . | . . . . . . . . Launcher . | . . . . . . . . Special Weapon . | . . . . . . . . Impact Weapon 2 | . . . . . 1 1 . Slashing Weapon . | . . . . . . . . Piercing Weapon . | . . . . . . . . Special Melee Weapon . | . . . . . . . . Unidentified Prototypes 1 | . . . . . 1 . . Parts Lost 16 | . . 1 . . 2 7 6 Power 2 | . . . . . . 1 1 Propulsion 6 | . . 1 . . 1 3 1 Utility 6 | . . . . . 1 2 3 Weapon 2 | . . . . . . 1 1 Highest Loss Streak 7 | . . 1 . . 1 7 5 To Critical Strikes . | . . . . . . . . Average Slot Usage (%) 85 | . 86 94 100 92 95 40 12 Engine 7 | . 14 11 9 7 6 2 2 Treads 23 | . 28 32 27 23 25 10 2 Device 2 | . . . . . 4 2 2 Storage 9 | . 14 11 9 7 12 6 . Processor 6 | . 1 11 9 7 7 2 . Protection 9 | . . 7 18 15 9 2 . Ballistic Gun 23 | . 27 22 27 30 25 10 2 Peak Build Rating 64 | 6 9 12 27 36 64 63 16 Average Rating 34 | 4 8 10 24 34 56 27 6 On Entrance 19 | . 6 9 12 27 36 63 1 Naked Turns 201 | . . . . . . 127 74 Heaviest Build 56 | 12 16 19 28 32 56 56 14 Greatest Support 100 | 40 40 60 60 70 100 92 20 Greatest Overweight (x) 2 | . . . . . . . 2 Average Overweight (x) . | . . . . . . . . Largest Inventory Capacity 10 | 8 8 8 8 8 10 10 5 Average Capacity 7 | 6 8 8 8 8 8 7 5 Most Carried 10 | 1 4 8 8 8 10 10 5 Average Carried 6 | . 2 3 7 7 8 7 3 Final Capacity 10 | 8 8 8 8 8 10 5 5 Final Carried 10 | 1 4 8 8 8 10 5 3 Class Distribution -------------------- 30% | Tank 26% | Mutant 23% | Gunner 16% | Scavenger-Tank Dominant Class ---------------- Mutant | -10/Materials Mutant | -9/Materials Scavenger-Tank | -8/Materials Tank | -7/Factory Gunner | -6/Factory Mutant | -6/Waste Mutant | -6/Factory Resources | -11 -10 -9 -8 -7 -6 -6 -6 ----------- Run | Yrd Mat Mat Mat Fac Fac Was Fac Matter Collected 2161 | 161 236 278 145 173 1029 114 25 Remotely . | . . . . . . . . Salvage Created 2663 | . 281 373 296 173 967 489 84 Parts 126 | . 21 38 16 8 38 1 4 Haulers Intercepted . | . . . . . . . . Recyclers Shooed 4 | . 1 . 1 . 2 . . Parts Field Recycled . | . . . . . . . . Retrieved Matter . | . . . . . . . . Parts Self-Destructed . | . . . . . . . . Prevented . | . . . . . . . . Kills | -11 -10 -9 -8 -7 -6 -6 -6 ------- Run | Yrd Mat Mat Mat Fac Fac Was Fac Combat Hostiles Destroyed 51 | . 9 11 10 4 14 2 1 Guns 50 | . 9 11 10 4 14 2 . Classes Destroyed 13 | . 3 2 1 1 4 1 1 Worker 1 | . . . . . 1 . . Builder 2 | . 1 . . . 1 . . Tunneler 1 | . . . . . . . 1 Recycler 3 | . . . . 1 2 . . Watcher 1 | . . . . . 1 . . Swarmer 13 | . 3 4 3 . 3 . . Grunt 19 | . 6 3 3 3 4 . . Duelist 3 | . . 1 . 1 1 . . Sentry 10 | . . 3 3 . 3 . 1 Hunter 2 | . . . 1 . 1 . . Programmer 1 | . . . . . 1 . . Heavy 1 | . . . . . 1 . . Compactor 2 | . . . . . . 2 . Best Kill Streak 8 | . 7 6 4 5 8 1 1 Combat Bots Only 7 | . 7 6 4 4 7 1 1 Max Kills in Single Turn 2 | . 1 2 1 2 2 1 1 Gunslinging 1 | . . . . 1 . . . Exploded . | . . . . . . . . Melee . | . . . . . . . . Uniques/NPCs Destroyed . | . . . . . . . . Combat | -11 -10 -9 -8 -7 -6 -6 -6 -------- Run | Yrd Mat Mat Mat Fac Fac Was Fac Hostile Shots Fired 390 | . 46 47 21 11 103 19 143 Missed 116 | . 9 16 5 4 30 . 52 Damage Taken 4241 | . 389 373 219 114 1313 838 995 Core 1016 | . 110 38 12 . 75 326 455 Absorbed by Shields . | . . . . . . . . Redirected to Shielding 14 | . . 6 2 . 6 . . Core Remaining (%) 88 | 100 56 90 97 100 . . . Volleys Fired 121 | . 19 19 14 7 34 20 8 Largest 4 | . 2 2 3 4 4 4 1 Hottest 120 | . 46 46 84 112 75 120 80 Shots Fired 350 | . 38 36 41 28 132 68 7 Gun 350 | . 38 36 41 28 132 68 7 Cannon . | . . . . . . . . Launcher . | . . . . . . . . Special . | . . . . . . . . Kinetic 344 | . 38 36 41 28 132 68 1 Thermal 6 | . . . . . . . 6 Explosive . | . . . . . . . . Electromagnetic . | . . . . . . . . Robot Hit Streak 15 | . 5 8 9 10 11 15 12 Robot Miss Streak 8 | . 2 4 8 5 5 3 1 Penetration Max . | . . . . . . . . Secondary Targets 11 | . . 3 2 2 3 1 . Max Gunslinging Chain 1 | . . 1 1 1 1 1 . Shots Hit Robots 238 | . 22 24 36 23 73 53 7 Core Hits 162 | . 14 19 49 30 35 11 4 Critical Kills . | . . . . . . . . Critical Parts Destroyed 1 | . . 1 . . . . . Critical Strikes 3 | . . 1 . . . 2 . Destroy 3 | . . 1 . . . 2 . Melee Attacks 4 | . . . . . 2 2 . Impact 4 | . . . . . 2 2 . Slashing . | . . . . . . . . Piercing . | . . . . . . . . Sneak Attacks . | . . . . . . . . Combat Hostiles . | . . . . . . . . Follow-up Attacks . | . . . . . . . . Damage Inflicted 5317 | . 339 401 661 447 1813 1461 195 Guns 5197 | . 339 401 655 442 1806 1359 195 Cannons . | . . . . . . . . Explosions . | . . . . . . . . Melee 102 | . . . . . . 102 . Ramming 18 | . . . 6 5 7 . . Kinetic 5025 | . 339 401 655 442 1806 1359 23 Thermal 172 | . . . . . . . 172 Explosive . | . . . . . . . . Electromagnetic . | . . . . . . . . Impact 102 | . . . . . . 102 . Slashing . | . . . . . . . . Piercing . | . . . . . . . . Highest Corruption 26 | . 4 2 . . 3 26 26 Average Corruption 9 | . 3 2 . . 2 15 26 Corruption Purged . | . . . . . . . . Corruption Blocked . | . . . . . . . . Effects 36 | . 4 . . . 10 14 8 Message Errors 4 | . 1 . . . 1 2 . Matter Fused 5 | . 2 . . . 2 . 1 Heat Flow Errors 4 | . 1 . . . . 1 2 Energy Discharges 5 | . . . . . 2 2 1 Data Loss (minor) 6 | . . . . . 1 3 2 Data Loss (major) 3 | . . . . . 2 1 . Misfires 1 | . . . . . 1 . . Alerts 1 | . . . . . . . 1 Misdirections 3 | . . . . . . 3 . Weapon Failures 4 | . . . . . 1 2 1 Overload Shots . | . . . . . . . . Overflow Damage . | . . . . . . . . Projectiles . | . . . . . . . . Explosions . | . . . . . . . . Melee . | . . . . . . . . Knockbacks 1 | . . . . . 1 . . Impact 1 | . . . . . 1 . . Kinetic . | . . . . . . . . Secondary . | . . . . . . . . Self-Inflicted Damage . | . . . . . . . . Shots . | . . . . . . . . Rammed 8 | . . . 3 2 1 . 2 Targets Rammed 8 | . . . 3 2 1 . 2 Kicked . | . . . . . . . . Crushed . | . . . . . . . . Highest Temperature 322 | . 274 18 36 115 322 74 135 Average Temperature 34 | . 45 9 10 48 36 33 45 Received Heat Transfer 528 | . 84 93 54 54 165 . 78 Effects 2 | . . . . . 2 . . Interference 1 | . . . . . 1 . . Short Circuit 1 | . . . . . 1 . . Siege Activations . | . . . . . . . . Robots Corrupted . | . . . . . . . . Combat Hostiles . | . . . . . . . . Parts Fried . | . . . . . . . . Impact Corruptions . | . . . . . . . . Robots Melted 1 | . . . . . . . 1 Combat Hostiles 1 | . . . . . . . 1 Parts Melted 3 | . . . . . . . 3 Heat Transferred 400 | . . . . . . . 400 Parts Sabotaged . | . . . . . . . . Parts Stolen . | . . . . . . . . Parts Stripped . | . . . . . . . . Power Chain Reactions . | . . . . . . . . Alert | -11 -10 -9 -8 -7 -6 -6 -6 ------- Run | Yrd Mat Mat Mat Fac Fac Was Fac Peak Influence 538 | . 285 435 538 348 268 79 35 Initial 183 | . . 120 183 153 72 79 . Average 166 | . 118 273 294 162 163 28 4 Maximum Alert Level 2 | . 1 2 2 1 1 . . Low Security (%) 67 | 100 67 32 21 92 72 100 100 Level 1 28 | . 32 53 63 7 27 . . Level 2 3 | . . 13 14 . . . . Level 3 . | . . . . . . . . Level 4 . | . . . . . . . . Level 5 . | . . . . . . . . High Security . | . . . . . . . . Max Security . | . . . . . . . . Squads Dispatched 12 | . 3 1 2 . 5 . 1 Investigation 1 | . . . . . . . 1 Extermination 1 | . . . . . 1 . . Reinforcement 9 | . 3 1 1 . 4 . . Assault . | . . . . . . . . Garrison 1 | . . . 1 . . . . Intercept . | . . . . . . . . Searches Triggered . | . . . . . . . . Construction Impeded . | . . . . . . . . Haulers Reinforced 1 | . . . . . 1 . . Active Scanning Responses . | . . . . . . . . Cargo Convoy Interrupts . | . . . . . . . . Stealth | -11 -10 -9 -8 -7 -6 -6 -6 --------- Run | Yrd Mat Mat Mat Fac Fac Was Fac Distress Signals 1 | . . 1 . . . . . Communications Jammed . | . . . . . . . . Distress Signals . | . . . . . . . . Times Spotted 77 | . 13 14 15 4 22 6 3 Peak Tracking Total 6 | . 6 5 5 4 6 4 3 Tactical Retreats 4 | . 1 . . . 3 . . Traps | -11 -10 -9 -8 -7 -6 -6 -6 ------- Run | Yrd Mat Mat Mat Fac Fac Was Fac Traps Triggered 5 | . 2 1 . . 2 . . Indirectly . | . . . . . . . . Trap Hack Attempts . | . . . . . . . . Triggered . | . . . . . . . . Disarmed . | . . . . . . . . Reprogrammed . | . . . . . . . . Reused . | . . . . . . . . Traps Extracted . | . . . . . . . . Installed . | . . . . . . . . Triggered . | . . . . . . . . Machines | -11 -10 -9 -8 -7 -6 -6 -6 ---------- Run | Yrd Mat Mat Mat Fac Fac Was Fac Machines Disabled 2 | . . . . 2 . . . Max in Single Turn 2 | . . . . 2 . . . Garrison Access 1 | . . . 1 . . . . Machines Repaired . | . . . . . . . . Machines Dismantled . | . . . . . . . . Machines Sabotaged . | . . . . . . . . Overloaded Fab Kills . | . . . . . . . . Hacking | -11 -10 -9 -8 -7 -6 -6 -6 --------- Run | Yrd Mat Mat Mat Fac Fac Was Fac Machines Accessed 4 | . . . 3 . . . 1 Terminals 2 | . . . 2 . . . . Fabricators . | . . . . . . . . Repair Stations . | . . . . . . . . Recycling Units 1 | . . . . . . . 1 Scanalyzers . | . . . . . . . . Garrison Access 1 | . . . 1 . . . . Total Hacks 12 | . . . 7 . . . 5 Successful 2 | . . . 2 . . . . Failed 10 | . . . 5 . . . 5 Catastrophic 1 | . . . . . . . 1 Database Lockouts . | . . . . . . . . Manual 3 | . . . 3 . . . . Terminals 3 | . . . 3 . . . . Fabricators . | . . . . . . . . Repair Stations . | . . . . . . . . Recycling Units 5 | . . . . . . . 5 Scanalyzers . | . . . . . . . . Garrison Access 4 | . . . 4 . . . . Terminal Hacks . | . . . . . . . . Fabricator Hacks . | . . . . . . . . Repair Station Hacks . | . . . . . . . . Recycling Unit Hacks . | . . . . . . . . Scanalyzer . | . . . . . . . . Garrison Access Hacks 1 | . . . 1 . . . . Seal Access 1 | . . . 1 . . . . Unauthorized Hacks 1 | . . . 1 . . . . Terminals 1 | . . . 1 . . . . Assimilate 1 | . . . 1 . . . . Fabricators . | . . . . . . . . Repair Stations . | . . . . . . . . Recycling Units . | . . . . . . . . Scanalyzers . | . . . . . . . . Garrison Access . | . . . . . . . . Data Cores Recovered . | . . . . . . . . Used . | . . . . . . . . Hacking Detections 3 | . . . 2 . . . 1 Full Trace Events 1 | . . . . . . . 1 Feedback Events . | . . . . . . . . Feedback Blocked . | . . . . . . . . Robot Schematics Acquired . | . . . . . . . . Robots Built . | . . . . . . . . Authchips . | . . . . . . . . Time . | . . . . . . . . Total Robot Build Rating . | . . . . . . . . Part Schematics Acquired . | . . . . . . . . Parts Built . | . . . . . . . . Authchips . | . . . . . . . . Time . | . . . . . . . . Total Part Build Rating . | . . . . . . . . Parts Repaired . | . . . . . . . . Time . | . . . . . . . . Parts Recycled . | . . . . . . . . Recycled Matter . | . . . . . . . . Retrieved Matter . | . . . . . . . . Retrieved Components . | . . . . . . . . Parts Scanalyzed . | . . . . . . . . Part Schematics Acquired . | . . . . . . . . Parts Damaged . | . . . . . . . . Bothacking | -11 -10 -9 -8 -7 -6 -6 -6 ------------ Run | Yrd Mat Mat Mat Fac Fac Was Fac Used RIF Installer . | . . . . . . . . Robots Hacked . | . . . . . . . . Non-combat . | . . . . . . . . Combat . | . . . . . . . . Robot Hacks Applied . | . . . . . . . . Relay Couplers Released . | . . . . . . . . Fabnet Peak Effective % . | . . . . . . . . Robots Rewired . | . . . . . . . . Allies Hacked . | . . . . . . . . Hacks Repelled . | . . . . . . . . Allies | -11 -10 -9 -8 -7 -6 -6 -6 -------- Run | Yrd Mat Mat Mat Fac Fac Was Fac Total Allies 2 | . . . 1 . . 1 . Largest Group 1 | . . . 1 . . 1 . Highest-Rated Group 31 | . . . 10 . . 31 . Highest-Rated Ally 31 | . . . 10 . . 31 . Total Orders . | . . . . . . . . Ally Attacks 3 | . . . . . . 3 . Total Damage 62 | . . . . . . 62 . Kills . | . . . . . . . . Allies Corrupted . | . . . . . . . . Allies Melted . | . . . . . . . . Intel | -11 -10 -9 -8 -7 -6 -6 -6 ------- Run | Yrd Mat Mat Mat Fac Fac Was Fac Robot Analysis Total . | . . . . . . . . Derelict Logs Recovered . | . . . . . . . . Drone Launches . | . . . . . . . . Drone Recoveries . | . . . . . . . . Exploration | -11 -10 -9 -8 -7 -6 -6 -6 ------------- Run | Yrd Mat Mat Mat Fac Fac Was Fac Turns Passed 3093 | 66 251 322 430 439 1176 248 161 Spaces Moved 1878 | 38 117 160 212 242 658 273 178 Core 400 | 4 . . . . . 253 143 Treads 1478 | 34 117 160 212 242 658 20 35 Legs . | . . . . . . . . Wheels . | . . . . . . . . Hover . | . . . . . . . . Flight . | . . . . . . . . Fastest Speed 50 | 50 160 160 160 155 155 50 50 Average Speed 135 | 148 160 160 160 158 156 57 73 Slowest Speed 160 | 160 160 160 160 160 158 158 160 Overloaded Moves . | . . . . . . . . Propulsion Burnouts . | . . . . . . . . Robots Hopped . | . . . . . . . . Cave-ins Triggered . | . . . . . . . . Exploration Rate (%) 25 | 4 34 20 29 8 19 88 5 Regions Visited 7 Branch Regions . Pre-discovered Areas . | . . . . . . . . Known Exits Taken 4 | . 1 1 1 1 . . . Unknown Exits Taken 1 | 1 . . . . . . . Scrap Searched . | . . . . . . . . Spaces Dug 2 | . . . . . 2 . . Terrain Destroyed 64 | . . . . 62 2 . . Melee 2 | . . . . . 2 . . Projectile . | . . . . . . . . AOE 62 | . . . . 62 . . . Terrain Rammed . | . . . . . . . . Walls Destroyed . | . . . . . . . . Machines Disabled . | . . . . . . . . Actions | -11 -10 -9 -8 -7 -6 -6 -6 --------- Run | Yrd Mat Mat Mat Fac Fac Was Fac Total 2204 | 44 144 192 277 280 746 323 198 Wait 87 | . 4 . 26 22 10 22 3 Move 1872 | 37 116 159 211 241 658 272 178 Hop . | . . . . . . . . Pick Up 16 | . . 2 7 2 5 . . Fast Attach 23 | 6 1 2 . . 8 1 5 Attach 13 | . . 2 2 1 2 4 2 Detach 3 | . . . . . 2 1 . Swap 29 | 1 4 6 5 2 11 . . Drop 28 | . . 2 9 3 13 1 . Fire 121 | . 19 19 14 7 34 20 8 Melee 4 | . . . . . 2 2 . Ram 2 | . . . . . . . 2 Kick . | . . . . . . . . Crush 6 | . . . 3 2 1 . . Escape Stasis . | . . . . . . . . Rewire . | . . . . . . . . Trap . | . . . . . . . . Miscellaneous . | . . . . . . . . Route ------- -11/Scrapyard -10/Materials -9/Materials (discovered 3 exits: *Mat / *Min / *Sto) -8/Materials -7/Factory (discovered 2 exits: *Fac / *Low) -6/Factory -6/Waste -6/Factory History --------- Turn | Location | Event 2 | -11/Scrapyard | Met Revision 17 18 | -11/Scrapyard | Discovered new exit (range 15) 67 | -11/Scrapyard | Entered Materials 278 | -10/Materials | Destroyed 7 combat bots 281 | -10/Materials | Discovered new exit (range 14) 316 | -10/Materials | Identified exit to Materials 318 | -10/Materials | Build established: Mutant 318 | -10/Materials | Entered another Materials area 318 | -9/Materials | Evolved 2 slots: Propulsion x1, Utility x1 444 | -9/Materials | Discovered new exit (range 13) 476 | -9/Materials | Identified exit to Mines 594 | -9/Materials | Discovered new exit (range 15) 618 | -9/Materials | Discovered new exit (range 10) 621 | -9/Materials | Identified exit to Storage 639 | -9/Materials | Identified exit to Materials 640 | -9/Materials | Entered another Materials area 640 | -8/Materials | Evolved 2 slots: Utility x1, Weapon x1 925 | -8/Materials | Build established: Scavenger-Tank 971 | -8/Materials | Garrison activated, responded to threat 1044 | -8/Materials | Discovered new exit (range 15) 1068 | -8/Materials | Identified exit to Factory 1070 | -8/Materials | Entered Factory 1070 | -7/Factory | Evolved 2 slots: Utility x1, Weapon x1 1222 | -7/Factory | Discovered new exit (range 7) 1231 | -7/Factory | Identified exit to Lower Caves 1436 | -7/Factory | Build established: Tank 1468 | -7/Factory | Discovered new exit (range 15) 1489 | -7/Factory | Identified exit to Factory 1509 | -7/Factory | Entered another Factory area 1509 | -6/Factory | Evolved 2 slots: Propulsion x1, Utility x1 1708 | -6/Factory | Destroyed 7 combat bots 2368 | -6/Factory | Build established: Gunner 2685 | -6/Factory | Sucked down chute 2685 | -6/Factory | Entered Waste 2686 | -6/Waste | Met a frightened Derelict 2700 | -6/Waste | EMP discharged 2700 | -6/Waste | System corruption reached 10% 2728 | -6/Waste | Spotted C-40 Crusher 2745 | -6/Waste | Destroyed C-40 Crusher 2756 | -6/Waste | Spotted C-40 Crusher 2762 | -6/Waste | Spotted C-40 Crusher 2772 | -6/Waste | Crushed by Compactor (1 part destroyed) 2775 | -6/Waste | Crushed by Compactor (0 parts destroyed, 1 dropped) 2775 | -6/Waste | Destroyed C-40 Crusher 2776 | -6/Waste | Spotted C-40 Crusher 2778 | -6/Waste | Crushed by Compactor (0 parts destroyed, 1 dropped) 2781 | -6/Waste | Crushed by Compactor (0 parts destroyed, 1 dropped) 2784 | -6/Waste | Spotted C-40 Crusher 2784 | -6/Waste | Crushed by Compactor (1 part destroyed) 2787 | -6/Waste | Crushed by Compactor (0 parts destroyed, 1 dropped) 2790 | -6/Waste | Crushed by Compactor (1 part destroyed) 2793 | -6/Waste | Crushed by Compactor (0 parts destroyed, 1 dropped) 2795 | -6/Waste | Crushed by Compactor (1 part destroyed, 1 dropped) 2796 | -6/Waste | Crushed by Compactor (0 parts destroyed, 1 dropped) 2800 | -6/Waste | EMP discharged 2801 | -6/Waste | Crushed by Compactor (0 parts destroyed, 1 dropped) 2804 | -6/Waste | Crushed by Compactor (1 part destroyed, 2 dropped) 2812 | -6/Waste | Spotted C-40 Crusher 2835 | -6/Waste | Lost 7 parts (1p3n2u1w) 2900 | -6/Waste | EMP discharged 2924 | -6/Waste | Discovered new exit (range 13) 2933 | -6/Waste | Entered Factory 3071 | -6/Factory | Core integrity fell below 50% 3090 | -6/Factory | Core integrity fell below 20% 3094 | -6/Factory | Destroyed by H-66 Slayer with Gauss Rifle Last Messages --------------- 03081_ Penetrated by Slug. 03081_ Slug penetrates Wall. 03085_ Penetrated by Slug. 03086_ Insulated Plating destroyed. 03086_ U-05 Engineer builds a Wall. 03087_ System corrupted: Gatling Laser failed to cycle. 03088_ Penetrated by Slug. 03089_ U-05 Engineer destroyed. 03089_ Slug penetrates Wall. 03090_ Y-54 Guardian heat spikes uncontrollably. 03091_ Y-54 Guardian heat short circuits Imp. Heat Sink. 03091_ Penetrated by Slug. 03093_ Slug penetrates Wall. 03093_ Melted Flak Gun. 03093_ Melted Lgt. Treads. 03094_ Y-54 Guardian critical meltdown. 03094_ Imp. Deuterium Engine melted. 03094_ Penetrated by Slug. 03094_ U-05 Engineer destroyed. 03094_ Penetrated by Slug. Map ----- +----------------------------------------------------+ | ?????????????????????????????????????????????????? | | ?????????????????????????????????????????????????? | | ?????????????????????????????????????????????????? | | ?????????????????????????????????????????????????? | | ?????????????????????????????????????????????????? | | ?????????????????????????????????????????????????? | | ?????????????????????????????????????????????????? | | ?????????????????????????????????????????????????? | | ?????????????????????????????????????????????????? | | ?????????????????????????????????????????????????? | | ?????????????????????????????????????????????????? | | ?????????????????????????????????????????????????? | | ?????????????????????????????????????????????????? | | ???????????????????????##???##???????????????????? | | ??????????????????????# ??? ###?????????????????? | | ??????????????????????#" """ + #?????????????????? | | ??????????????????????#" """ # #?????????????????? | | ??????????????????????#" """u# #+########### ??? | | ?????????##############T "" # ??? | | ?????????# #" "" # ?? | | ?????????# #" h ?? | | ?????????# #" # ?? | | ?????????# # # ?? | | ?????????# #! ! ###/########### ?? | | ?????????# # | ### #?????? | | ?????????# #!%@ [ h + #?????? | | ?????????# #*=![ ### ! #?????? | | ?????????# # [[% #?# =% #?????? | | ?????????# ### ####?# #?????? | | ?????????# #?###????# #???? ? | | ?????????# #????????# ! !#?? # | | ?################/####################+##### # | | ?# # | | ?# ^ # | | ?# # | | ?# # | | ?# # | | ?# ##########+#############+######/########### | | ## #???# #????????????? ??????????? | | #???# """ #????????????? ??????????? | | #???# "T" """" #????????????????????????? | | #???# """" #????????????????????????? | | #???# """" #????????????????????????? | | #???# """" #????????????????????????? | | #???# #????????????????????????? | | #???# """" """" #????????????????????????? | | + """" """" #????????????????????????? | | ############ """" """" #????????????????????????? | | #??????????# """" """" #????????????????????????? | | #??????????# ???????????????????????????? | +----------------------------------------------------+ Best States ------------- Heat Dissipation 37 Energy Generation 12 Energy Capacity 800 Matter Stores 450 Matter Capacity 450 Sight Range 16 Robot Scan Range 16 Terrain Scan Density 10 Jamming Range 12 Armor Coverage 600 Resistance: EM 15 Core Shielding 20 Evasion (%) 50 Core Analysis 6 Recoil Reduction 4 Item Schematics ----------------- None Robot Schematics ------------------ None Fabricated ------------ Nothing Alien Tech Used ----------------- None Achievements -------------- None Challenges ------------ None Game ------ Seed BackupImprovedFilter Manual? 0 Play Time 00:24:37 Cumulative 22.9 hours Start 2024.10.10 @ 00:21:14 End 2024.10.10 @ 00:44:10 Sessions 1 Manual Loads 0 Difficulty Rogue Special Mode None Game No. 45 Rogue 45 Adventurer 0 Explorer 0 Win Type - Total 0 Types 0/0/0/0/0/0/0/0/0 Lore% 14 Gallery% 33 Achievement% 30 Wizard Run 0 Options --------- Layout 0 ASCII 0 Keyboard 1 Movement Numpad Keybinds 0 Fullscreen 2 Font 24/Terminus Map View 76x50 Zoom Use 0% Tactical HUD 1 Map Filters NONE Filters NONE Steam 1 RUN: 265be68d-50f5-4e93-8fb0-5167354d5926